[Event "Czech Championship 2022"]
[Site "Usti nad Labem"]
[Date "2022.05.20"]
[Round "7.1"]
[White "Plat, Vojtech"]
[Black "Zwardon, Vojtech"]
[Result "0-1"]
[ECO "E36"]
[WhiteElo "2547"]
[BlackElo "2482"]
[Annotator "TA"]
[PlyCount "132"]
[EventDate "2022.05.12"]
[EventType "swiss"]
[EventCountry "CZE"]
[SourceTitle "playchess.com"]
[Source "ChessBase"]
[SourceQuality "1"]
[TimeControl "40/5400+30:1800+30"]

{[%evp 12,132,14,16,12,12,10,22,10,27,47,38,39,13,38,37,40,34,43,4,41,20,43,43,49,31,41,36,42,30,36,29,34,0,19,0,0,0,4,0,0,0,3,0,0,0,0,0,0,0,0,0,25,12,16,0,0,-6,0,0,17,8,53,56,56,47,72,47,41,13,38,26,47,44,46,47,54,35,44,0,-7,0,-8,-8,0,0,0,0,0,0,0,-151,-139,-91,0,-131,-177,-29970,-29970,-29976,-29977,-29977,-29978,-29978,-29976,-29978,-29979,-29979,-29977,-29976,-29977,-29977,-29978,-29978,-29979,-29977,-29978,-29984,-29985,-29985,-29986,-29986,-29987]} 1. d4 {[%emt 0:00:04]} Nf6 {[%emt 0:00:16]} 2. c4 {[%emt 0:00:05]} e6 {[%emt 0:00:03]} 3. Nc3 {[%emt 0:00:04]} Bb4 {[%emt 0:00:02]} 4. Qc2 {[%emt 0:00:05]} d5 {[%emt 0:00:04]} 5. a3 {[%emt 0:00:03]} Bxc3+ {[%emt 0:00:24]} 6. Qxc3 {[%emt 0:00:05]} dxc4 {[%emt 0:04:39]} 7. Qxc4 {[%emt 0:00:22]} b6 {[%emt 0:00:30] E36: Nimzo-Indian: Classical: 4...d5 5 a3.} 8. Nf3 {[%emt 0:01:50] 8.Bf4 might become the main line.} Ba6 {[%emt 0:00:40]} 9. Qa4+ {[%emt 0:00:05]} Qd7 {[%emt 0:00:09] The position is equal.} 10. Qc2 {[%emt 0:00:18]} Qc6 {[%emt 0:04:38]} 11. Qxc6+ {[%emt 0:00:51]} Nxc6 {[%emt 0:00:02] [#]} 12. Bg5 $146 {[%emt 0:01:18]} ({Predecessor:} 12. Bf4 O-O-O 13. Rc1 Kb7 14. g3 Rhe8 15. Bg2 Nd5 16. Bd2 e5 17. dxe5 Nxe5 18. Nxe5 Rxe5 {0-1 (42) Akobian,V (2647)-Anand,V (2782) Riadh 2017}) 12... O-O-O {[%emt 0:00:57]} 13. e3 {[%emt 0:03:09]} Bxf1 {[%emt 0:00:20]} 14. Kxf1 {[%emt 0:00:03]} h6 {[%emt 0:01:04]} 15. Rc1 {[%emt 0:01:19]} Kb7 {[%emt 0:02:00]} 16. Bf4 {[%emt 0:04:51]} Nd5 {[%emt 0:04:12]} 17. Bg3 {[%emt 0:00:03]} f6 {[%emt 0:03:06]} 18. Ke2 {[%emt 0:00:17]} Nde7 {[%emt 0:00:34]} 19. Rc2 {[%emt 0:03:08]} a5 {[%emt 0:08:02]} 20. Rhc1 {[%emt 0:00:58]} Rd7 {[%emt 0:00:17]} 21. Nd2 {[%emt 0:04:51]} Rc8 {[%emt 0:01:22]} 22. Ne4 {[%emt 0:00:13]} Nd8 {[%emt 0:00:46]} 23. b4 {[%emt 0:10:07]} axb4 {[%emt 0:01:28]} 24. axb4 {[%emt 0:00:05]} Ndc6 {[%emt 0:05:24]} 25. b5 {[%emt 0:05:54]} Na7 {[%emt 0:00:09]} 26. Rb2 {[%emt 0:03:33]} f5 {[%emt 0:08:09]} 27. Nd2 {[%emt 0:13:30]} Rd5 {[%emt 0:00:22]} 28. Rcb1 {[%emt 0:00:21]} Ng6 {[%emt 0:02:59] Inhibits Be5.} 29. Nf3 {[%emt 0:03:54]} f4 {[%emt 0:02:22]} 30. Bxf4 {[%emt 0:00:03]} Nxf4+ {[%emt 0:00:05]} 31. exf4 {[%emt 0:00:02]} Ra8 {[%emt 0:00:08]} 32. g3 {[%emt 0:05:03]} Nc8 $1 {[%emt 0:00:44]} 33. Rb4 {[%emt 0:06:34]} Nd6 {[%emt 0:00:44]} 34. Ne5 {[%emt 0:01:06]} Ra2+ {[%emt 0:00:29]} 35. Kf3 {[%emt 0:01:29]} Rd2 {[%emt 0:01:15]} 36. g4 {[%emt 0:03:00]} g5 {[%emt 0:09:12]} 37. fxg5 {[%emt 0:01:30]} hxg5 {[%emt 0:00:04]} 38. Ke3 $1 {[%emt 0:00:29]} Rc2 {[%emt 0:00:16]} 39. R4b3 {[%emt 0:05:21]} (39. R1b3 $5 {[%cal Rh2h3]}) 39... Ra2 $1 {[%emt 0:02:13]} 40. h3 {[%emt 0:01:02]} Ra4 $1 {[%emt 0:01:15]} 41. Nc6 {[%emt 0:41:35]} Nxb5 {[%emt 0:34:59]} 42. Ne7 {[%emt 0:00:10]} Nxd4 {[%emt 0:02:15]} 43. Nxd5 {[%emt 0:00:05]} Nxb3 $14 {[%emt 0:00:04][%mdl 4096] Endgame KRN-KRN} 44. Nc3 {[%emt 0:00:21]} Rb4 {[%emt 0:00:10]} 45. f4 {[%emt 0:06:34]} (45. Ne4 $2 Rxe4+ $1 {[%mdl 512]} 46. Kxe4 Nd2+ 47. Ke3 Nxb1 $19) (45. Rb2 $14) 45... gxf4+ $11 {[%emt 0:00:29]} 46. Kf2 {[%emt 0:00:02]} c5 {[%emt 0:04:11] Strongly threatening ...Nd2.} 47. g5 $1 {[%emt 0:00:00] Hoping for g6.} Nd2 {[%emt 0:00:00]} 48. g6 $1 {[%emt 0:00:00]} Nxb1 {[%emt 0:00:00]} 49. g7 {[%emt 0:00:00]} Nxc3 {[%emt 0:00:00]} 50. g8=Q {[%emt 0:00:00] KQ-KRN} Ne4+ {[%emt 0:00:00]} 51. Kf3 $2 {[%emt 0:00:00] [#]} (51. Kg2 $11) 51... Nd2+ $1 $17 {[%emt 0:00:00]} 52. Kf2 {[%emt 0:00:00]} f3 {[%emt 0:00:00]} (52... Re4 $17 {And now ...f3 would win.} 53. Qe8 Ka6) 53. Qh7+ {[%emt 0:00:00]} (53. Qxe6 $11 {keeps the balance.} Ne4+ 54. Ke3) 53... Kc6 {[%emt 0:00:00] Threatens to win with ...Re4.} 54. Qh6 $2 {[%emt 0:00:00] [#]} (54. Qg8 $19 Re4 55. Qe8+ (55. Qc8+ $2 Kd5 $19) 55... Kd5 56. Qa8+ Kc4 57. Qa4+ Kc3 58. Qa3+ Nb3 59. Kxf3) 54... Re4 $1 {[%emt 0:00:00] Black mates.} 55. Qh8 {[%emt 0:00:00]} (55. Qxd2 Re2+) 55... Re2+ {[%emt 0:00:00]} 56. Kg3 {[%emt 0:00:00]} f2 {[%emt 0:00:00]} 57. Qe8+ {[%emt 0:00:00]} Kd6 {[%emt 0:00:00]} 58. Qb8+ {[%emt 0:00:00] [#]} Kd5 $1 {[%emt 0:00:00]} 59. Qa8+ {[%emt 0:00:00]} Ke5 {[%emt 0:00:00]} 60. Qh8+ {[%emt 0:00:00]} Ke4 {[%emt 0:00:00]} 61. Qa8+ {[%emt 0:00:00]} Kd3 {[%emt 0:00:00]} 62. Qa3+ {[%emt 0:00:03]} Kc2 {[%emt 0:00:00]} 63. Qa2+ {[%emt 0:00:05]} Kc3 {[%emt 0:00:00]} 64. Qa1+ {[%emt 0:01:30]} Kb4 {[%emt 0:00:00]} 65. Qb2+ {[%emt 0:00:02]} Kc4 {[%emt 0:00:00]} 66. Qc2+ {[%emt 0:00:15]} Kd4 {[%emt 0:00:00] Weighted Error Value: White=0.28 (precise) /Black=0.08 (flawless)} 0-1

[Event "Czech Championship 2022"]
[Site "Usti nad Labem"]
[Date "2022.05.20"]
[Round "7.2"]
[White "Navara, David"]
[Black "Hracek, Zbynek"]
[Result "1-0"]
[ECO "B90"]
[WhiteElo "2682"]
[BlackElo "2570"]
[Annotator "TA"]
[PlyCount "93"]
[EventDate "2022.05.12"]
[EventType "swiss"]
[EventCountry "CZE"]
[SourceTitle "playchess.com"]
[Source "ChessBase"]
[SourceQuality "1"]
[TimeControl "40/5400+30:1800+30"]

{[%evp 10,93,25,9,26,8,16,18,20,22,30,24,12,20,32,30,0,0,26,13,16,20,16,13,34,40,35,20,25,28,34,20,28,28,28,28,28,28,36,29,29,28,45,29,22,8,20,0,20,14,15,0,8,0,0,0,0,0,0,0,9,5,12,0,53,56,86,49,56,50,78,0,228,204,216,237,199,237,227,204,245,243,703,486,476,448]} 1. e4 {[%emt 0:00:02]} c5 {[%emt 0:00:10]} 2. Nf3 {[%emt 0:00:04]} d6 {[%emt 0:00:05]} 3. d4 {[%emt 0:00:04]} cxd4 {[%emt 0:00:03]} 4. Nxd4 {[%emt 0:00:06]} Nf6 {[%emt 0:00:05]} 5. Nc3 {[%emt 0:00:06]} a6 {[%emt 0:00:04]} 6. Bd3 {[%emt 0:00:05]} Nbd7 {[%emt 0:05:50] B90: Sicilian Najdorf: Unusual White 6th moves, 6 Be3 Ng4 and 6 Be3 e5.} 7. a4 $5 {[%emt 0:00:11][%mdl 4] An interesting side line.} g6 {[%emt 0:03:45]} 8. a5 {[%emt 0:05:59]} Bg7 {[%emt 0:01:05] The position is equal.} 9. O-O {[%emt 0:03:59]} O-O {[%emt 0:02:05] [#]} 10. Re1 $146 {[%emt 0:01:24]} ({Predecessor:} 10. Nb3 Ne5 11. Na4 Nxd3 12. cxd3 Be6 13. Nb6 Bxb3 14. Qxb3 Rb8 15. Bg5 h6 16. Bxf6 Bxf6 {1-0 (79) Gheng,J (2310)-Osmanovic,F (2081) Ditzingen 2009}) 10... Ne5 {[%emt 0:04:12]} 11. Bf1 {[%emt 0:03:46]} Bd7 {[%emt 0:08:00]} 12. Nd5 {[%emt 0:08:30]} Nxd5 {[%emt 0:02:28]} 13. exd5 {[%emt 0:00:20]} Rc8 {[%emt 0:00:01]} 14. h3 {[%emt 0:07:40]} Rc5 {[%emt 0:05:02]} 15. Nb3 {[%emt 0:00:46]} Rc8 {[%emt 0:00:10]} 16. c3 {[%emt 0:08:24]} Re8 {[%emt 0:08:54]} 17. Re4 {[%emt 0:12:47] Strongly threatening f4.} Bb5 $1 {[%emt 0:21:39]} 18. Rb4 {[%emt 0:01:16]} Bxf1 {[%emt 0:02:22]} 19. Qxf1 {[%emt 0:00:09]} Qc7 {[%emt 0:01:00]} 20. Bf4 {[%emt 0:21:55]} (20. f4 $5 {[%cal Rf4e5]} Nd7 21. Qf3 $11) 20... Nc4 {[%emt 0:09:18]} 21. Nd2 $1 {[%emt 0:00:17]} Nxd2 {[%emt 0:01:00]} 22. Bxd2 {[%emt 0:00:05]} e5 {[%emt 0:02:08]} 23. Qd1 {[%emt 0:03:21]} Qd7 {[%emt 0:08:33]} 24. Qb3 {[%emt 0:01:40]} Rc7 {[%emt 0:00:04]} 25. Rb6 {[%emt 0:02:46]} e4 {[%emt 0:02:08]} 26. Ra4 {[%emt 0:05:00]} Be5 $1 {[%emt 0:00:09]} 27. Rab4 {[%emt 0:05:03][%cal Rb6b7]} Re7 {[%emt 0:00:04]} 28. Qc2 {[%emt 0:02:29]} f5 {[%emt 0:00:22]} 29. Qc1 {[%emt 0:01:26]} Rc5 {[%emt 0:04:32][%csl LRa5,LRd5]} 30. Bg5 {[%emt 0:01:39]} Rf7 {[%emt 0:00:10]} 31. Rxb7 {[%emt 0:00:09]} Qxb7 {[%emt 0:00:10]} 32. Rxb7 {[%emt 0:00:05]} Rxb7 {[%emt 0:00:01]} 33. Bd8 {[%emt 0:00:18]} Rxd5 {[%emt 0:01:20][%cal Ob7b2]} 34. Bb6 {[%emt 0:00:08]} Rd3 {[%emt 0:05:20]} 35. Qc2 {[%emt 0:01:05]} Kg7 {[%emt 0:02:55]} 36. Kf1 {[%emt 0:00:49][%mdl 1024] White has compensation.} d5 {[%emt 0:01:12]} (36... Rd5 $1 $11) 37. Qa4 $14 {[%emt 0:01:27]} Rf7 {[%emt 0:00:13]} 38. Qe8 {[%emt 0:00:35]} Bf6 {[%emt 0:00:04]} 39. g3 $1 {[%emt 0:02:30]} g5 {[%emt 0:02:17]} 40. Qc8 {[%emt 0:01:14]} (40. Be3 $16) 40... Rf3 $2 {[%emt 0:00:53]} (40... f4 $1 $11 {and Black stays safe.}) 41. Qxa6 $18 {[%emt 0:10:29]} d4 {[%emt 0:06:22] [#]} 42. Qa8 $1 {[%emt 0:00:07]} ({Don't take} 42. Bxd4 $6 Bxd4 43. cxd4 e3 $16) ({But not} 42. cxd4 $6 e3 43. Ke2 Rxf2+ 44. Kxe3 Rxb2 $16) 42... dxc3 {[%emt 0:05:40]} 43. bxc3 {[%emt 0:00:08]} Rxc3 {[%emt 0:00:11]} 44. a6 {[%emt 0:03:14]} Rd7 {[%emt 0:07:59] [#] And now ...Rc1+ would win.} 45. Kg2 $1 {[%emt 0:00:24] Qe8 is the strong threat.} Rd1 $2 {[%emt 0:01:39] [#]} (45... Rc1 46. Be3 Ra1) 46. Bc5 $1 {[%emt 0:00:30][%mdl 512] Qf8+ would kill now.} Rd8 {[%emt 0:02:56] [#] Prevents Qf8+.} 47. Qxd8 $3 {[%emt 0:01:24][%mdl 512] Weighted Error Value: White=0.14 (very precise) /Black=0.20 (precise)} 1-0

[Event "Czech Championship 2022"]
[Site "Usti nad Labem"]
[Date "2022.05.20"]
[Round "7.3"]
[White "Stocek, Jiri"]
[Black "Babula, Vlastimil"]
[Result "1/2-1/2"]
[ECO "D24"]
[WhiteElo "2533"]
[BlackElo "2576"]
[Annotator "TA"]
[PlyCount "43"]
[EventDate "2022.05.12"]
[EventType "swiss"]
[EventCountry "CZE"]
[SourceTitle "playchess.com"]
[Source "ChessBase"]
[SourceQuality "1"]
[TimeControl "40/5400+30:1800+30"]

{[%evp 10,43,0,-15,0,0,20,20,7,15,4,0,0,0,0,1,0,-16,-20,-9,-7,-29,0,0,2,0,0,0,0,0,0,0,0,0,8,0]} 1. d4 {[%emt 0:00:34] Huzman,A} Nf6 {[%emt 0:00:10]} 2. c4 {[%emt 0:00:17]} e6 {[%emt 0:00:11]} 3. Nf3 {[%emt 0:00:09]} a6 {[%emt 0:00:21]} 4. Nc3 {[%emt 0:01:14][%cal Bb1c3,Bc3d5,Bd5b6][%mdl 32]} d5 {[%emt 0:00:15]} 5. Bg5 {[%emt 0:00:47]} dxc4 {[%emt 0:03:51]} 6. a4 {[%emt 0:00:35]} c5 {[%emt 0:04:44] D24: Queen's Gambit Accepted: 3 Nf3 Nf6 4 Nc3.} 7. Bxf6 {[%emt 0:07:18]} Qxf6 {[%emt 0:03:17]} 8. d5 {[%emt 0:03:07] Prevents Nc6.} exd5 {[%emt 0:02:40]} 9. Nxd5 {[%emt 0:02:21]} Qd8 {[%emt 0:01:07] [#]} 10. a5 $146 {[%emt 0:15:51]} ({Predecessor:} 10. e3 Nc6 11. Bxc4 Bd6 12. O-O O-O 13. h3 Re8 14. Qc2 Rb8 15. a5 h6 16. Rfd1 {1-0 (32) Khalifman,A (2660)-Ivanov,S (2570) St Petersburg 1998 CBM 065 [Huzman,A]}) 10... Nc6 {[%emt 0:03:44]} 11. Nb6 {[%emt 0:00:32] Pair of Knights!} Qxd1+ {[%emt 0:01:02]} 12. Kxd1 {[%emt 0:00:45]} Rb8 {[%emt 0:00:12]} 13. e3 {[%emt 0:04:13]} Bg4 {[%emt 0:14:44]} 14. Bxc4 {[%emt 0:05:23]} Be7 {[%emt 0:02:43]} 15. Bd5 {[%emt 0:15:33]} Rd8 {[%emt 0:15:51]} 16. Ke2 {[%emt 0:07:39] The position is equal.} Nxa5 {[%emt 0:05:49]} 17. h3 {[%emt 0:03:49]} Bxf3+ {[%emt 0:06:23]} 18. Bxf3 {[%emt 0:00:12]} Nb3 {[%emt 0:00:46] [#] And now ...Rd2+ would win.} 19. Rad1 {[%emt 0:00:36] Against Rd2+} Na5 {[%emt 0:00:38]} 20. Ra1 {[%emt 0:05:02]} Nb3 {[%emt 0:00:06] Hoping for ...Rd2+.} 21. Rad1 {[%emt 0:00:29] Prevents Rd2+.} Na5 $1 {[%emt 0:00:09]} 22. Ra1 {[%emt 0:11:31] A balanced but interesting game.  Weighted Error Value: White=0.03 (flawless) /Black=0.04 (flawless)} 1/2-1/2

[Event "Czech Championship 2022"]
[Site "Usti nad Labem"]
[Date "2022.05.20"]
[Round "7.4"]
[White "Smolik, Jachym"]
[Black "Kraus, Tomas"]
[Result "0-1"]
[ECO "E04"]
[WhiteElo "2272"]
[BlackElo "2472"]
[Annotator "TA"]
[PlyCount "76"]
[EventDate "2022.05.12"]
[EventType "swiss"]
[EventCountry "CZE"]
[SourceTitle "playchess.com"]
[Source "ChessBase"]
[SourceQuality "1"]
[TimeControl "40/5400+30:1800+30"]

{[%evp 11,76,0,0,0,0,0,0,-4,0,0,0,-37,-42,-33,-46,-34,-37,-67,-38,-89,-118,-137,-101,-167,-170,-168,-158,-137,-159,-167,-127,-240,-85,-122,-68,-56,-70,-72,-68,-82,0,-33,0,0,0,0,0,-228,-228,-212,-219,-215,-170,-180,-181,-175,-158,-168,-160,-660,-202,-29988,-29989,-29989,-29990,-29995,-29996]} 1. d4 {[%emt 0:00:02]} d5 {[%emt 0:00:22]} 2. c4 {[%emt 0:00:06]} e6 {[%emt 0:00:08]} 3. Nf3 {[%emt 0:00:09]} Nf6 {[%emt 0:00:45]} 4. g3 {[%emt 0:00:19]} c6 {[%emt 0:00:37]} 5. Bg2 {[%emt 0:00:26]} dxc4 {[%emt 0:01:24]} 6. O-O {[%emt 0:05:56]} b5 {[%emt 0:00:45]} 7. Ne5 {[%emt 0:01:32] E04: Open Catalan: 5 Nf3.} Bb7 {[%emt 0:00:53]} 8. b3 {[%emt 0:00:49]} cxb3 $1 {[%emt 0:00:45]} 9. axb3 {[%emt 0:00:10] The position is equal.} Be7 {[%emt 0:03:58]} 10. Nc3 {[%emt 0:02:41][%cal Oc3b5]} a6 {[%emt 0:06:33]} 11. Ne4 {[%emt 0:06:48]} Nxe4 $1 {[%emt 0:03:47]} 12. Bxe4 {[%emt 0:00:08]} f6 {[%emt 0:00:16]} 13. Nf3 {[%emt 0:09:10] [#]} f5 $146 {[%emt 0:03:07]} ({Predecessor:} 13... Nd7 14. Bd2 f5 15. Ba5 Qb8 16. Bc2 c5 17. dxc5 Nxc5 18. Qd4 O-O 19. Rad1 Qe8 {1-0 (60) Naroditsky,D (2634)-Laznicka,V (2654) Grosseto Prugna 2016}) 14. Bd3 {[%emt 0:03:57][%cal Ob3b4]} Nd7 {[%emt 0:04:13]} 15. Bb2 {[%emt 0:17:27]} (15. b4 $15) 15... O-O $17 {[%emt 0:03:36]} 16. Rc1 {[%emt 0:02:11]} Rc8 {[%emt 0:02:23]} 17. b4 {[%emt 0:10:18]} (17. e4 $17) 17... Bxb4 $19 {[%emt 0:06:10]} 18. Qb3 {[%emt 0:00:07]} Qe7 {[%emt 0:00:46]} 19. Ng5 {[%emt 0:07:26]} Qxg5 {[%emt 0:04:36]} 20. Qxb4 {[%emt 0:00:08]} f4 {[%emt 0:01:30]} 21. Ba3 {[%emt 0:05:26]} (21. Qd6 $17 Qd5 22. Ba3) 21... Qd5 $2 {[%emt 0:15:25]} (21... fxg3 $19 {and Black stays clearly on top.} 22. hxg3 Qh6) 22. f3 $17 {[%emt 0:00:53]} a5 {[%emt 0:07:56]} (22... Rf7 $17 23. Be4 Qg5) 23. Qxa5 $15 {[%emt 0:02:01]} Qxd4+ {[%emt 0:01:39]} 24. Kg2 {[%emt 0:00:03]} Rf7 {[%emt 0:00:49]} 25. Rfd1 {[%emt 0:02:53][%cal Od3h7] And now Bxh7+! would win.} Qb6 {[%emt 0:02:35]} ({Better is} 25... Qf6 $17 {Hoping for ...fxg3.} 26. Qd2 Ra8) 26. Qb4 {[%emt 0:04:52]} Ne5 {[%emt 0:10:00][%cal Oe5g4]} 27. Bxh7+ {[%emt 0:05:49][%mdl 64] Decoy} Kxh7 {[%emt 0:03:08]} 28. Qe4+ {[%emt 0:00:02]} Ng6 $1 {[%emt 0:01:29] ...c5 is the strong threat.} 29. Qxe6 $2 {[%emt 0:08:26]} (29. Rc5 $1 $11 {and White is okay.} e5 30. h4) 29... Rf6 $19 {[%emt 0:01:43]} 30. Qh3+ {[%emt 0:00:06]} Kg8 {[%emt 0:00:09]} 31. Bc5 {[%emt 0:01:09]} Qc7 {[%emt 0:04:25] White must now prevent ...Re8.} 32. Rd7 {[%emt 0:00:14] [#]} Qe5 {[%emt 0:00:02]} 33. Rxb7 {[%emt 0:00:28]} Qxe2+ {[%emt 0:01:08]} 34. Bf2 {[%emt 0:01:18] [#]} ({Wrong is} 34. Kg1 $2 Rd8 35. Qg2 Qxg2+ 36. Kxg2 Rd2+ 37. Kf1 fxg3 38. hxg3 Rxf3+ 39. Ke1 Rd5 $19) 34... fxg3 $1 {[%emt 0:04:02] ( -> ...Nh4+). The board is on fire.} ({Inferior is} 34... Rd8 35. Re1 fxg3 36. Rxe2 $17) 35. Qxg3 {[%emt 0:03:31]} (35. Qxc8+ $17 Rf8 36. Qxf8+ Kxf8 37. hxg3) 35... Rcf8 $2 {[%emt 0:01:51]} (35... Nf4+ 36. Kh1 {[#]} Rg6 $1) 36. Rc3 $2 {[%emt 0:00:09]} (36. Kh1 $19) 36... Nf4+ {[%emt 0:00:27] Black mates.} 37. Kh1 {[%emt 0:00:03]} Rg6 {[%emt 0:00:41]} 38. Rxg7+ {[%emt 0:01:06]} Rxg7 {[%emt 0:00:16] Weighted Error Value: White=0.62/Black=0.39} 0-1

[Event "Czech Championship 2022"]
[Site "Usti nad Labem"]
[Date "2022.05.20"]
[Round "7.5"]
[White "Cernousek, Lukas"]
[Black "Rubes, Jan"]
[Result "1/2-1/2"]
[ECO "E11"]
[WhiteElo "2440"]
[BlackElo "2386"]
[Annotator "TA"]
[PlyCount "110"]
[EventDate "2022.05.12"]
[EventType "swiss"]
[EventCountry "CZE"]
[SourceTitle "playchess.com"]
[Source "ChessBase"]
[SourceQuality "1"]
[TimeControl "40/5400+30:1800+30"]

{[%evp 18,110,10,0,19,16,17,17,16,21,46,43,39,47,71,72,70,73,116,104,99,52,65,34,62,68,75,75,68,72,79,76,80,75,66,78,74,66,72,72,119,69,66,75,84,66,71,72,71,49,80,74,70,83,86,54,54,54,55,32,27,0,0,0,0,0,0,0,0,0,0,0,0,0,0,0,0,0,0,0,0,0,0,0,0,0,0,0,0,0,8,0,0,0,8]} 1. d4 {[%emt 0:00:07]} Nf6 {[%emt 0:00:14]} 2. c4 {[%emt 0:00:02]} e6 {[%emt 0:00:06]} 3. Nf3 {[%emt 0:00:06]} d5 {[%emt 0:00:04]} 4. g3 {[%emt 0:00:06]} Bb4+ {[%emt 0:00:06]} 5. Bd2 {[%emt 0:00:49]} Be7 {[%emt 0:00:03]} 6. Bg2 {[%emt 0:00:26]} O-O {[%emt 0:00:06]} 7. O-O {[%emt 0:01:07]} c6 {[%emt 0:00:08]} 8. Qc2 {[%emt 0:04:05]} Nbd7 {[%emt 0:00:14]} 9. Rd1 {[%emt 0:12:34]} b6 {[%emt 0:00:10]} 10. b3 {[%emt 0:08:27]} Bb7 {[%emt 0:02:17] 10...a5 is a critical line. E11: Bogo-Indian.} 11. Nc3 {[%emt 0:01:32]} Rc8 {[%emt 0:01:41]} 12. e4 {[%emt 0:01:00]} dxe4 {[%emt 0:05:44]} 13. Nxe4 {[%emt 0:00:49]} Nxe4 {[%emt 0:28:16]} (13... c5 {with more complications.} 14. Nxf6+ Nxf6 15. Bc3 cxd4 16. Bxd4 Be4) 14. Qxe4 {[%emt 0:00:10]} Nf6 {[%emt 0:00:04]} 15. Qe2 {[%emt 0:05:38]} Bd6 {[%emt 0:11:32] [#]} 16. b4 $146 {[%emt 0:21:27][%cal Bb3b4,Bb4b5][%mdl 32]} ({Predecessor:} 16. Ne5 Qe7 17. Bf4 Rfd8 18. Rac1 c5 19. Bxb7 Qxb7 20. dxc5 Bxc5 21. Bg5 Rxd1+ 22. Rxd1 {0-1 (43) Shuvalova,P (2454)-Koridze,L (2016) Chess.com INT 2020}) 16... h6 {[%emt 0:03:46]} 17. Ne5 {[%emt 0:04:29]} Bb8 {[%emt 0:01:18]} 18. b5 {[%emt 0:13:44][%cal Rb5c6]} Qxd4 {[%emt 0:00:11]} 19. Nxc6 {[%emt 0:01:34]} (19. bxc6 $16 Ba6 20. Bf4) 19... Bxc6 $14 {[%emt 0:00:27]} 20. Bxc6 {[%emt 0:00:18][%cal Od2h6]} Qe5 {[%emt 0:01:20]} 21. Qxe5 {[%emt 0:02:11]} Bxe5 {[%emt 0:00:02]} 22. Rab1 {[%emt 0:00:23]} Bd6 {[%emt 0:04:10]} 23. Be3 {[%emt 0:12:58]} Rfd8 {[%emt 0:00:30]} 24. h3 {[%emt 0:01:05] Against Ng4} Kf8 {[%emt 0:00:38]} 25. a4 {[%emt 0:00:32][%cal Oa4a5]} Ke7 {[%emt 0:04:45]} 26. a5 {[%emt 0:00:07]} Nd7 {[%emt 0:12:31]} 27. axb6 {[%emt 0:01:00]} axb6 {[%emt 0:00:10]} 28. Ra1 {[%emt 0:00:11]} Bc7 {[%emt 0:06:45]} (28... Nc5 $142) 29. Ra7 {[%emt 0:05:54] White is much more active.} (29. Bb7 $16) 29... Ne5 {[%emt 0:01:19][%csl LRc4,LRd1]} 30. Rxd8 {[%emt 0:00:24]} Kxd8 {[%emt 0:00:03]} 31. Bb7 {[%emt 0:00:18]} Rb8 {[%emt 0:00:35]} 32. c5 {[%emt 0:00:01]} bxc5 {[%emt 0:00:09]} 33. Bxc5 {[%emt 0:00:03]} Nd7 {[%emt 0:00:10] Prevents b6.} 34. Bd4 {[%emt 0:02:10] This bishop pair is nice.} e5 {[%emt 0:03:47]} 35. Be3 {[%emt 0:00:01]} Nb6 {[%emt 0:01:02]} 36. Bc6 {[%emt 0:00:08]} Nc8 {[%emt 0:01:36]} 37. Ra1 {[%emt 0:00:02]} Ke7 {[%emt 0:01:31]} 38. g4 {[%emt 0:02:25]} Bb6 {[%emt 0:01:09]} 39. Bd2 {[%emt 0:00:38]} Na7 {[%emt 0:02:44] The position is equal.} 40. Bb4+ {[%emt 0:00:16]} Ke6 {[%emt 0:00:16]} 41. Rc1 {[%emt 0:11:30]} Nxc6 {[%emt 0:03:09]} 42. Rxc6+ $11 {[%emt 0:00:39][%mdl 4096] Endgame KRB-KRB} Kd5 {[%emt 0:00:10]} 43. Bd6 {[%emt 0:03:36]} Rb7 {[%emt 0:00:17]} 44. Bf8 {[%emt 0:00:18]} Bd4 {[%emt 0:09:05]} 45. Bxg7 {[%emt 0:07:37] [#] Strongly threatening Rf6.} f5 $1 {[%emt 0:00:13]} 46. Bxh6 {[%emt 0:00:24] Threatens to win with g5.} Rxb5 {[%emt 0:00:02]} 47. Rc2 {[%emt 0:03:33]} fxg4 {[%emt 0:04:36]} 48. hxg4 {[%emt 0:00:02]} Rb6 $1 {[%emt 0:00:10]} 49. g5 {[%emt 0:03:15]} Ke4 {[%emt 0:01:09]} 50. Kg2 {[%emt 0:00:08]} Kf5 {[%emt 0:00:05]} 51. Rc8 {[%emt 0:00:33]} Kg4 {[%emt 0:09:45]} 52. Rf8 {[%emt 0:02:39]} e4 {[%emt 0:00:13]} 53. Rd8 {[%emt 0:00:10]} Be5 {[%emt 0:01:01]} 54. Rd5 {[%emt 0:00:10]} Bf4 {[%emt 0:00:43]} 55. Rd4 {[%emt 0:02:05]} Re6 {[%emt 0:00:03] Weighted Error Value: White=0.05 (flawless) /Black=0.05 (flawless)} 1/2-1/2